Cogmind - Beta 15 @@@ ROGUE MODE // 2025.06.25 @ 17:32:13 Player: Skysub Result: Destroyed by ZR-088(R) with Subdweller Shrapnel Launcher Performance ------------- Evolutions (0) 0 Regions Visited (2) 400 Robots Destroyed (16) 80 Value Destroyed (342) 342 Prototype IDs (0) 0 Alien Tech Used (0) 0 Bonus (0) 0 TOTAL SCORE: 822 Bonus ------- None Cogmind --------- Core Integrity 0/250 Matter 38/300 Energy 100/100 System Corruption 0% Temperature Cool (0) Movement Rolling (115) Ox1 Location -10/Subcaves Parts ------- > --- POWER (1) -------- (None) > --- PROPULSION (2) --- Light Treads Compact Wheel > --- UTILITY (2) ------ Large Storage Unit Structural Scanner > --- WEAPON (2) ------- Assault Rifle Battle Rifle > --- INVENTORY (15) --- Subdweller Power Source Subdweller Power Source Subdweller Power Source Subdweller Power Source Subdweller Monowheel Makeshift Flight Unit Subdweller Optics Improved Terrain Scanner Hacking Suite Light Assault Rifle Light Assault Rifle Subdweller Machine Gun Mining Laser Peak State ------------ > --- POWER ------------ Light Ion Engine > --- PROPULSION ------- Light Treads Light Treads > --- UTILITY ---------- Small Storage Unit Improved Terrain Scanner > --- WEAPON ----------- Assault Rifle Light Assault Rifle > --- INVENTORY -------- Light Ion Engine Compact Wheel Structural Scanner Light Armor Plating Hacking Suite Light Assault Rifle Grenade Launcher Mining Laser [Rating: 10] Favorites ----------- Power Light Ion Engine Engine Light Ion Engine Propulsion Light Treads Treads Light Treads Wheel Compact Wheel Utility Large Storage Unit Device Improved Terrain Scanner Storage Large Storage Unit Protection Light Armor Plating Weapon Assault Rifle Ballistic Gun Assault Rifle Launcher Grenade Launcher Special Weapon Mining Laser Build | -11 -10 -10 ------- Run | Yrd Mat Sub Slots Evolved . | . . . Power . | . . . Propulsion . | . . . Utility . | . . . Weapon . | . . . Parts Attached 16 | 7 1 8 Power 2 | 1 . 1 Engine 2 | 1 . 1 Core . | . . . Reactor . | . . . Propulsion 3 | 2 . 1 Treads 2 | 2 . . Leg . | . . . Wheel 1 | . . 1 Hover . | . . . Flight . | . . . Utility 5 | 2 1 2 Device 2 | 1 . 1 Storage 2 | 1 1 . Processor . | . . . Hackware . | . . . Protection 1 | . . 1 Artifact . | . . . Weapon 6 | 2 . 4 Energy Gun . | . . . Energy Cannon . | . . . Ballistic Gun 3 | 2 . 1 Ballistic Cannon . | . . . Launcher 1 | . . 1 Special Weapon 2 | . . 2 Impact Weapon . | . . . Slashing Weapon . | . . . Piercing Weapon . | . . . Special Melee Weapon . | . . . Unidentified Prototypes . | . . . Parts Lost 6 | . . 6 Power 2 | . . 2 Propulsion 1 | . . 1 Utility 1 | . . 1 Weapon 2 | . . 2 Highest Loss Streak 5 | . . 5 To Critical Strikes . | . . . Average Backups 8 | 1 6 11 Power 2 | . 1 3 Propulsion . | . 1 . Utility 2 | . 2 3 Weapon 3 | . 2 4 Tool/Special . | . . . Unused Backups 10 | . . 10 Power 4 | . . 4 Propulsion 2 | . . 2 Utility 2 | . . 2 Weapon 2 | . . 2 Tool/Special . | . . . Average Slot Usage (%) 99 | . 100 98 Engine 13 | . 14 13 Treads 24 | . 28 21 Wheel 2 | . . 5 Device 12 | . 14 11 Storage 14 | . 14 14 Protection 1 | . . 1 Ballistic Gun 22 | . 28 17 Special Weapon 5 | . . 9 Peak Build Rating 10 | 9 10 10 Average Rating 9 | 5 9 9 On Entrance 6 | . 9 10 Naked Turns . | . . . Heaviest Build 31 | 12 27 31 Greatest Support 40 | 40 40 40 Greatest Overweight (x) 1 | . . 1 Average Overweight (x) . | . . . Largest Inventory Capacity 15 | 8 15 15 Average Capacity 12 | 6 11 15 Most Carried 13 | 3 9 13 Average Carried 8 | 1 6 11 Final Capacity 15 | 8 15 15 Final Carried 13 | 3 9 13 Class Distribution -------------------- 100% | Mutant Dominant Class ---------------- Mutant | -10/Materials Mutant | -10/Subcaves Resources | -11 -10 -10 ----------- Run | Yrd Mat Sub Matter Collected 479 | 249 122 108 Remotely . | . . . Salvage Created 474 | 19 321 134 Parts 43 | 3 33 7 Haulers Intercepted 1 | . 1 . Recyclers Shooed 3 | . 3 . Parts Field Recycled . | . . . Retrieved Matter . | . . . Parts Self-Destructed 5 | . . 5 Prevented . | . . . Kills | -11 -10 -10 ------- Run | Yrd Mat Sub Combat Hostiles Destroyed 9 | . 5 4 Guns 7 | . 5 2 AOE 2 | . . 2 Classes Destroyed 7 | 1 5 1 Builder 3 | . 3 . Tunneler 2 | 1 1 . Hauler 1 | . 1 . Operator 1 | . 1 . Swarmer 2 | . 2 . Grunt 3 | . 3 . Subdweller 4 | . . 4 Best Kill Streak 3 | 1 3 3 Combat Bots Only 3 | . 2 3 Max Kills in Single Turn 1 | 1 1 1 Gunslinging . | . . . Exploded 1 | . . 1 Melee . | . . . Uniques/NPCs Destroyed . | . . . Combat | -11 -10 -10 -------- Run | Yrd Mat Sub Hostile Shots Fired 74 | . 44 30 Missed 26 | . 12 14 Hits 48 | . 32 16 Projectile 48 | . 32 16 AOE 5 | . . 5 Damage Taken 914 | . 375 539 Core 262 | . 94 168 Absorbed by Shields . | . . . Core Remaining (%) 100 | 100 . . Volleys Fired 87 | 4 55 28 Largest 2 | 2 2 2 Hottest 100 | 40 40 100 Shots Fired 155 | 8 110 37 Gun 142 | 8 110 24 Cannon . | . . . Launcher 5 | . . 5 Special 8 | . . 8 Kinetic 142 | 8 110 24 Thermal 8 | . . 8 Explosive 5 | . . 5 Electromagnetic . | . . . Robot Hit Streak 12 | 4 9 12 Robot Miss Streak 5 | 2 5 2 Penetration Max . | . . . Secondary Targets 1 | . 1 . Max Gunslinging Chain 1 | . 1 . Shots Hit Robots 77 | 4 51 22 Core Hits 30 | 2 19 9 Critical Kills . | . . . Critical Parts Destroyed . | . . . Critical Strikes . | . . . Melee Attacks . | . . . Impact . | . . . Slashing . | . . . Piercing . | . . . Sneak Attacks . | . . . Combat Hostiles . | . . . Follow-up Attacks . | . . . Damage Inflicted 1115 | 38 560 517 Guns 804 | 38 560 206 Cannons . | . . . Explosions 311 | . . 311 Melee . | . . . Ramming . | . . . Kinetic 804 | 38 560 206 Thermal . | . . . Explosive 311 | . . 311 Electromagnetic . | . . . Impact . | . . . Slashing . | . . . Piercing . | . . . Highest Corruption . | . . . Average Corruption . | . . . Corruption Purged . | . . . Corruption Blocked . | . . . Overload Shots . | . . . Overflow Damage . | . . . Projectiles . | . . . Explosions . | . . . Melee . | . . . Knockbacks . | . . . Impact . | . . . Kinetic . | . . . Secondary . | . . . Self-Inflicted Damage . | . . . Shots . | . . . Rammed 1 | . 1 . Targets Rammed 1 | . 1 . Kicked . | . . . Crushed . | . . . Highest Temperature 12 | . 12 . Average Temperature 7 | . 7 . Received Heat Transfer 114 | . 81 33 Siege Activations . | . . . Martial Activations . | . . . Shielding Activations . | . . . Robots Disrupted . | . . . Combat Hostiles . | . . . Robots Corrupted . | . . . Combat Hostiles . | . . . Parts Fried . | . . . Impact Corruptions . | . . . Robots Melted . | . . . Combat Hostiles . | . . . Parts Melted 1 | . . 1 Heat Transferred . | . . . Parts Sabotaged . | . . . Parts Stolen . | . . . Parts Stripped . | . . . Power Chain Reactions . | . . . Alert | -11 -10 -10 ------- Run | Yrd Mat Sub Maximum Alert Level . | . . . Low Security (%) 100 | 100 100 . Level 1 . | . . . Level 2 . | . . . Level 3 . | . . . Level 4 . | . . . Level 5 . | . . . High Security . | . . . Max Security . | . . . Peak Influence 60 | 5 60 . Initial . | . . . Average 15 | . 17 . Influence Increases 187 | 5 182 . Destroy 0b10 Robot/C 100 | . 100 . Destroy 0b10 Robot/NC 35 | 5 30 . Destroy Leader 22 | . 22 . Select Force Hacks 30 | . 30 . Influence Decreases 187 | 5 175 7 Entered New Map 4 | . . 4 Time Decay 183 | 5 175 3 Squads Dispatched 2 | . 2 . Investigation 1 | . 1 . Extermination . | . . . Reinforcement 1 | . 1 . Assault . | . . . Garrison . | . . . Intercept . | . . . Searches Triggered . | . . . Construction Impeded . | . . . Haulers Reinforced . | . . . Active Scanning Responses . | . . . Cargo Convoy Interrupts . | . . . Stealth | -11 -10 -10 --------- Run | Yrd Mat Sub Distress Signals 3 | . 3 . Communications Jammed . | . . . Distress Signals . | . . . Times Spotted 22 | . 16 6 Peak Tracking Total 6 | . 6 2 Tactical Retreats . | . . . Traps | -11 -10 -10 ------- Run | Yrd Mat Sub Traps Triggered 2 | . 2 . Indirectly . | . . . Trap Hack Attempts . | . . . Triggered . | . . . Disarmed . | . . . Reprogrammed . | . . . Reused . | . . . Traps Extracted . | . . . Installed . | . . . Triggered . | . . . Machines | -11 -10 -10 ---------- Run | Yrd Mat Sub Machines Disabled . | . . . Max in Single Turn . | . . . Machines Repaired . | . . . Machines Dismantled . | . . . Machines Sabotaged . | . . . Overloaded Fab Kills . | . . . Hacking | -11 -10 -10 --------- Run | Yrd Mat Sub Machines Accessed 3 | . 3 . Terminals 2 | . 2 . Fabricators . | . . . Repair Stations . | . . . Recycling Units 1 | . 1 . Scanalyzers . | . . . Garrison Access . | . . . Total Hacks 12 | . 12 . Successful 7 | . 7 . Failed 5 | . 5 . Catastrophic . | . . . Database Lockouts . | . . . Manual 5 | . 5 . Terminals 6 | . 6 . Fabricators . | . . . Repair Stations . | . . . Recycling Units 6 | . 6 . Scanalyzers . | . . . Garrison Access . | . . . Terminal Hacks 3 | . 3 . Branch Access Points 1 | . 1 . Recall Investigation 1 | . 1 . Zone Layout 1 | . 1 . Fabricator Hacks . | . . . Repair Station Hacks . | . . . Recycling Unit Hacks 2 | . 2 . Report Inventory 1 | . 1 . Retrieve Components 1 | . 1 . Scanalyzer . | . . . Garrison Access Hacks . | . . . Unauthorized Hacks 2 | . 2 . Terminals 1 | . 1 . Botnet 1 | . 1 . Fabricators . | . . . Repair Stations . | . . . Recycling Units 1 | . 1 . Tunnel 1 | . 1 . Scanalyzers . | . . . Garrison Access . | . . . Data Cores Recovered 1 | . 1 . Used 1 | . 1 . Hacking Detections 2 | . 2 . Full Trace Events . | . . . Feedback Events . | . . . Feedback Blocked . | . . . Robot Schematics Acquired . | . . . Robots Built . | . . . Authchips . | . . . Time . | . . . Total Robot Build Rating . | . . . Part Schematics Acquired . | . . . Parts Built . | . . . Authchips . | . . . Time . | . . . Total Part Build Rating . | . . . Parts Repaired . | . . . Time . | . . . Parts Recycled . | . . . Recycled Matter . | . . . Retrieved Matter . | . . . Retrieved Components 10 | . 10 . Parts Scanalyzed . | . . . Part Schematics Acquired . | . . . Parts Damaged . | . . . Bothacking | -11 -10 -10 ------------ Run | Yrd Mat Sub Used RIF Installer . | . . . Robots Hacked . | . . . Non-combat . | . . . Combat . | . . . Robot Hacks Applied . | . . . Relay Couplers Released . | . . . Fabnet Peak Effective % . | . . . Robots Rewired . | . . . Allies Hacked . | . . . Hacks Repelled . | . . . Allies | -11 -10 -10 -------- Run | Yrd Mat Sub Total Allies . | . . . Largest Group . | . . . Highest-Rated Group . | . . . Highest-Rated Ally . | . . . Total Orders . | . . . Ally Attacks . | . . . Total Damage . | . . . Kills . | . . . Allies Corrupted . | . . . Allies Melted . | . . . Intel | -11 -10 -10 ------- Run | Yrd Mat Sub Active Infowar (turns) 1239 | 14 615 610 Terrain 642 | 14 615 13 Structural 597 | . . 597 Robot Analysis Total . | . . . Derelict Logs Recovered 2 | . . 2 Drone Launches . | . . . Drone Recoveries . | . . . Exploration | -11 -10 -10 ------------- Run | Yrd Mat Sub Turns Passed 1428 | 87 615 726 Spaces Moved 756 | 41 265 450 Core 2 | 2 . . Treads 530 | 39 265 226 Legs . | . . . Wheels 224 | . . 224 Hover . | . . . Flight . | . . . Fastest Speed 50 | 50 160 115 Average Speed 146 | 154 160 138 Slowest Speed 240 | 160 160 240 Overloaded Moves . | . . . Propulsion Burnouts . | . . . Robots Hopped . | . . . Potential Cave-ins 1 | . . 1 Cave-ins Triggered . | . . . Exploration Rate (%) 29 | 4 47 38 Regions Visited 2 Branch Regions 1 Pre-discovered Areas 2 | . 1 1 Known Exits Taken . | . . . Unknown Exits Taken 2 | 1 1 . Scrap Searched . | . . . Spaces Dug 10 | . . 10 Terrain Destroyed 31 | . . 31 Melee . | . . . Projectile 3 | . . 3 AOE 28 | . . 28 Terrain Rammed . | . . . Walls Destroyed . | . . . Machines Disabled . | . . . Actions | -11 -10 -10 --------- Run | Yrd Mat Sub Total 912 | 54 357 501 Wait 29 | . 29 . Move 754 | 40 264 450 Hop . | . . . Pick Up 17 | 3 6 8 Fast Attach 7 | 7 . . Attach 5 | . . 5 Detach . | . . . Swap 11 | . 1 10 Drop 1 | . 1 . Fire 87 | 4 55 28 Melee . | . . . Ram . | . . . Kick . | . . . Crush 1 | . 1 . Escape Stasis . | . . . Rewire . | . . . Trap . | . . . Miscellaneous . | . . . Route ------- -11/Scrapyard -10/Materials (discovered 4 exits: [*Mat] / *Min x2 / [*Sub]) -10/Subcaves History --------- Turn | Location | Event 42 | -11/Scrapyard | Discovered new exit (range 12) 88 | -11/Scrapyard | Entered Materials 115 | -10/Materials | Identified exit to Mines 304 | -10/Materials | Build established: Mutant 601 | -10/Materials | Discovered new exit (range 15) 674 | -10/Materials | Discovered new exit (range 5) 703 | -10/Materials | Entered Subcaves 715 | -10/Subcaves | Learned location of 1 exit from Materials 763 | -10/Subcaves | Core integrity fell below 50% 1116 | -10/Subcaves | Core integrity fell below 20% 1159 | -10/Subcaves | Lost 5 parts (1p1n1u2w) 1181 | -10/Subcaves | Learned location of Zion (-6) 1243 | -10/Subcaves | Shifting Twisted Machinery released Battle Cannon 1251 | -10/Subcaves | Shifting Twisted Machinery released Piercing Trap 1272 | -10/Subcaves | A swath of the cavern ceiling suddenly collapsed 1429 | -10/Subcaves | Destroyed by ZR-088(R) with Subdweller Shrapnel Launcher Last Messages --------------- 01100_ Lgt. Treads destroyed. 01102_ Lgt. Ion Engine destroyed. 01115_ XT-LKM(R) destroyed. 01119_ Subatomizers dissect the Sub. Power Source. 01128_ Lgt. Armor Plating destroyed. 01129_ Subatomizers dissect the Sub. Power Source. 01129_ JI-L8I(R) destroyed. 01138_ Acquired 28 matter. 01139_ Acquired 37 matter. 01143_ Subatomizers dissect the Sub. Power Source. 01143_ Acquired Sub. Machine Gun. 01145_ Acquired Sub. Power Source. 01181_ Acquired derelict log, extracted data. World map updated: -6/Zion. Battle Cannon falls loose from the Twisted Machinery. Piercing Trap falls loose from the Twisted Machinery. A swath of the cavern ceiling suddenly collapses. 01367_ Acquired Sub. Monowheel. 01376_ Acquired Mak. Flight Unit. 01429_ Lgt. Ion Engine destroyed. Map ----- +----------------------------------------------------+ | ????????????????## ###?????????????????? | | ????????????????### # # ##?????????????????? | | ????????????????## #######?????????????????? | | ????????????????## ######??????????????????? | | ????????????????### ##??????????????????????? | | ????????????????## ###?????????????????????? | | ????????????????## ###?????????????????????? | | ????????????????## ##?????????????????????? | | ????????????????### ###?????????????????????? | | ????????????????### ##?????????????????????? | | ?????????????????## ###?????????????????????? | | ???????????######## ]###?????????????????????? | | ???????????######## ##??????????????????????? | | ???????????##" ##< ##??????????????????????? | | ???????????## # ###?????????????????????? | | ????????????? ##"#